bitfinex-derivatives/quotes_BTCF0:USTF0_20250207
["timestamp","ask_amount","ask_price","bid_price","bid_amount"]
[1738944521365,0.2035367,98228.0,98227.0,0.006]
[1738944521566,0.2035367,98228.0,98227.0,0.001]
[1738944521765,0.3608,98233.0,98223.0,0.00715271]
[1738944521969,0.203545,98224.0,98223.0,0.00715271]
[1738944522565,0.203545,98224.0,98223.0,0.00015271]
[1738944523474,0.203545,98224.0,98223.0,0.00808903]
[1738944524066,0.203545,98224.0,98223.0,0.01108903]
[1738944525677,0.203545,98224.0,98202.0,0.3608]
[1738944525678,0.2036072,98194.0,98193.0,0.17790265]
[1738944526682,0.203592,98202.0,98193.0,0.17790265]
[1738944526868,0.00015271,98203.0,98193.0,0.17790265]
[1738944527070,0.00015271,98203.0,98193.0,0.18190265]
[1738944527275,0.2035948,98200.0,98193.0,0.18190265]
[1738944527667,0.00015271,98203.0,98193.0,0.18190265]
[1738944528076,0.00015271,98203.0,98199.0,0.3608]
[1738944528769,0.00015271,98203.0,98201.0,0.2035926]
[1738944529486,0.00015271,98203.0,98199.0,0.3608]
[1738944529979,0.00015271,98203.0,98199.0,0.3628]
[1738944530381,0.00015271,98203.0,98199.0,0.3618]
[1738944530880,0.00015271,98203.0,98201.0,0.2035914]
[1738944531072,0.2035379,98228.0,98199.0,0.3628]
[1738944531379,0.2035469,98224.0,98222.0,0.3608]
[1738944531572,0.17926499,98230.0,98213.0,0.3608]
[1738944531881,0.2035609,98217.0,98213.0,0.3608]
[1738944532173,0.00921104,98229.0,98213.0,0.3608]
[1738944532381,0.2035499,98222.0,98213.0,0.3608]
[1738944532581,0.2035564,98219.0,98213.0,0.3608]
[1738944532780,0.2035586,98218.0,98213.0,0.3608]
[1738944532981,0.2035586,98218.0,98213.0,0.3648]
[1738944533181,0.2035657,98214.0,98213.0,0.004]
[1738944533483,0.2035657,98214.0,98213.0,0.009]
[1738944534077,0.2035657,98214.0,98213.0,0.01]
[1738944534780,0.2035657,98214.0,98213.0,0.015]
[1738944535683,0.2035823,98206.0,98205.0,0.00015271]
[1738944536179,0.002,98214.0,98205.0,0.00015271]
[1738944536382,0.002,98214.0,98206.0,0.3608]
[1738944536585,0.01118305,98214.0,98206.0,0.5643809]
[1738944536783,0.001,98214.0,98206.0,0.5643809]
[1738944536982,0.001,98214.0,98212.0,0.2035681]
[1738944537386,0.001,98214.0,98207.0,0.4686787]
[1738944537580,0.001,98214.0,98207.0,0.2651]
[1738944538286,0.001,98214.0,98209.0,0.2035743]
[1738944538986,0.001,98214.0,98207.0,0.2651]
[1738944539489,0.2035705,98212.0,98207.0,0.2651]
[1738944539686,0.001,98214.0,98209.0,0.008]
[1738944539889,0.001,98214.0,98212.0,0.2035695]
[1738944540078,0.001,98214.0,98209.0,0.008]
[1738944540386,0.1519062,98220.0,98207.0,0.2671]
[1738944540588,0.2035641,98215.0,98207.0,0.4746796]
[1738944540891,0.69197119,98220.0,98207.0,0.006]
[1738944541078,0.2035779,98209.0,98207.0,0.006]
[1738944541281,0.5643779,98209.0,98207.0,0.002]
[1738944541585,0.69341119,98220.0,98207.0,0.002]
[1738944541586,0.001,98214.0,98207.0,0.002]
[1738944541776,0.203577,98209.0,98205.0,0.00015271]
[1738944541983,0.1519062,98213.0,98209.0,0.008]
[1738944542188,0.1519062,98213.0,98210.0,0.5643739]
[1738944542388,0.1519062,98213.0,98212.0,0.2035698]
[1738944542885,0.00140001,98240.0,98210.0,0.3608]
[1738944543081,0.26911777,98241.0,98229.0,0.2035346]
[1738944543291,0.26911777,98241.0,98234.0,0.2035242]
[1738944544086,0.00140001,98277.0,98246.0,0.2034992]
[1738944544287,0.17926499,98280.0,98246.0,0.9250992]
[1738944544288,0.00920931,98258.0,98246.0,0.9250992]
[1738944544493,0.00015271,98256.0,98246.0,0.9250992]
[1738944544690,0.29901974,98247.0,98246.0,0.9250992]
[1738944545188,0.29901974,98247.0,98246.0,0.7216]
[1738944545597,0.00015271,98256.0,98246.0,0.7216]
[1738944545891,0.00015271,98256.0,98254.0,0.3608]
[1738944546087,0.00015271,98256.0,98254.0,0.5642812]
[1738944546294,0.24342908,98276.0,98267.0,0.2034557]
[1738944546480,0.25223477,98276.0,98275.0,0.3608]
[1738944547086,0.25223477,98276.0,98212.0,0.3608]
[1738944547087,0.62391477,98276.0,98212.0,0.3608]
[1738944547390,0.2035232,98235.0,98212.0,0.3608]
[1738944547588,0.54006499,98230.0,98212.0,0.3608]
[1738944547785,0.2035367,98228.0,98214.0,0.00015271]
[1738944548182,0.3608,98222.0,98214.0,0.00015271]
[1738944548385,0.3608,98220.0,98219.0,0.24337785]
[1738944548690,0.3608,98220.0,98219.0,0.21314974]
[1738944548885,0.2035634,98215.0,98214.0,0.00015271]
[1738944549990,0.2035634,98215.0,98214.0,7.871e-05]
[1738944550193,0.2035634,98215.0,98214.0,0.00607871]
[1738944550794,0.001,98215.0,98214.0,0.01507871]
[1738944552093,0.001,98215.0,98214.0,0.21864421]
[1738944552388,0.001,98215.0,98214.0,0.01507871]
[1738944554984,0.07168,98243.0,98223.0,0.2035469]
[1738944555186,0.00916865,98234.0,98223.0,0.5643469]
[1738944556091,0.2035265,98233.0,98223.0,0.5643469]
[1738944556296,0.001074,98224.0,98223.0,0.5733469]
[1738944557283,0.00152793,98247.0,98223.0,0.73548]
[1738944557487,0.00152793,98247.0,98246.0,0.5642992]
[1738944559790,0.00452793,98247.0,98246.0,0.5642992]
[1738944560188,0.00452793,98247.0,98246.0,0.5682992]
[1738944560487,3e-08,98247.0,98246.0,0.5702992]
[1738944560896,3e-08,98247.0,98246.0,0.006]
[1738944561099,3e-08,98247.0,98246.0,0.002]
[1738944561100,0.20449713,98247.0,98246.0,0.002]
[1738944561692,0.00100003,98247.0,98246.0,0.002]
[1738944562085,0.00100003,98247.0,98245.0,0.2035002]
[1738944562289,0.2035137,98239.0,98237.0,0.36095271]
[1738944562488,0.2035137,98239.0,98237.0,0.00015271]
[1738944563496,0.3608,98238.0,98237.0,0.002]
[1738944563698,0.5643158,98238.0,98237.0,0.002]
[1738944564289,0.3608,98238.0,98211.0,0.3608]
[1738944564594,0.3608,98226.0,98211.0,0.3608]
[1738944564799,0.3608,98230.0,98219.0,0.2035541]
[1738944564991,0.00015271,98234.0,98215.0,0.00015271]
[1738944565392,0.2035268,98233.0,98215.0,0.00015271]
[1738944565595,0.3608,98225.0,98215.0,0.00015271]
[1738944565794,0.3608,98225.0,98217.0,0.2035587]
[1738944566896,0.5643439,98225.0,98217.0,0.002]
[1738944567198,0.3608,98225.0,98217.0,0.002]
[1738944567695,0.3608,98225.0,98217.0,0.007]
[1738944567890,0.37001097,98225.0,98217.0,0.007]
[1738944568091,0.00921097,98225.0,98217.0,0.007]
[1738944568386,0.00015271,98234.0,98217.0,0.007]
[1738944568691,0.2035569,98219.0,98217.0,0.007]
[1738944568890,0.3608,98218.0,98217.0,0.007]
[1738944569099,0.3608,98218.0,98181.0,0.0509083]
[1738944569100,0.2035904,98202.0,98172.0,0.54311494]
[1738944569303,0.3608,98189.0,98172.0,0.54311494]
[1738944569500,0.3608,98181.0,98162.0,0.30370027]
[1738944569804,0.2036561,98171.0,98162.0,0.30370027]
[1738944569992,0.3608,98181.0,98162.0,0.30370027]
[1738944570195,0.00015279,98176.0,98171.0,0.2036538]
[1738944570399,0.2036478,98175.0,98165.0,0.2036655]
[1738944570601,0.2036478,98175.0,98172.0,0.009]
[1738944571594,0.00015279,98176.0,98173.0,0.2036501]
[1738944571995,0.00015279,98176.0,98172.0,0.009]
[1738944572200,0.00015279,98176.0,98174.0,0.2036477]
[1738944572501,0.20379809,98176.0,98171.0,0.004]
[1738944573097,0.20379809,98176.0,98172.0,0.003]
[1738944573400,0.00015279,98176.0,98172.0,0.003]
[1738944573601,0.00015279,98176.0,98175.0,0.2036464]
[1738944573801,0.07164,98212.0,98175.0,0.2036464]
[1738944574104,0.2035938,98201.0,98196.0,0.3608]
[1738944574404,0.2036088,98194.0,98190.0,0.2036149]
[1738944574589,0.2036194,98188.0,98187.0,0.3608]
[1738944574794,0.2036064,98195.0,98187.0,0.3608]
[1738944575191,0.00015279,98197.0,98195.0,0.2036048]
[1738944575397,0.00015279,98197.0,98195.0,0.5644048]
[1738944575904,0.00015279,98197.0,98187.0,0.3608]
[1738944576304,0.2036184,98189.0,98187.0,0.3608]
[1738944576607,0.00015279,98197.0,98187.0,0.3608]
[1738944576899,0.20475559,98197.0,98195.0,0.006]
[1738944577496,0.3608,98196.0,98195.0,0.006]
[1738944578005,0.21396759,98197.0,98195.0,0.006]
[1738944578598,0.21296759,98197.0,98195.0,0.004]
[1738944578901,0.01036479,98197.0,98195.0,0.004]
[1738944579606,0.01036479,98197.0,98195.0,0.01]
[1738944580198,0.01036479,98197.0,98195.0,0.213604]
[1738944580607,0.00115279,98197.0,98195.0,0.213604]
[1738944581797,0.00115279,98197.0,98195.0,0.01]
[1738944581997,0.20475419,98197.0,98195.0,0.01]
[1738944584205,0.00115279,98197.0,98195.0,0.01]
[1738944584596,0.00115279,98197.0,98196.0,0.2036028]
[1738944585606,0.00115279,98197.0,98196.0,0.004]
[1738944585805,0.20475389,98197.0,98196.0,0.01]
[1738944587008,0.2036341,98181.0,98178.0,0.00015279]
[1738944587306,0.2036369,98180.0,98178.0,0.00015279]
[1738944587508,0.3608,98185.0,98178.0,0.00015279]
[1738944587802,0.00115279,98197.0,98184.0,0.3608]
[1738944588005,0.00115279,98197.0,98195.0,0.2036035]
[1738944588203,0.00115279,98197.0,98184.0,0.3608]
[1738944588403,0.00015279,98197.0,98189.0,0.203616]
[1738944588612,0.00015279,98197.0,98184.0,0.3608]
[1738944588807,0.20375479,98197.0,98186.0,0.2036231]
[1738944589109,0.20575479,98197.0,98191.0,0.2036125]
[1738944589310,0.20675479,98197.0,98191.0,0.2036125]
[1738944589606,0.20475479,98197.0,98191.0,0.2036125]
[1738944589812,0.20475479,98197.0,98178.0,0.00015279]
[1738944589813,0.2036139,98191.0,98189.0,0.003]
[1738944590106,0.00115279,98197.0,98189.0,0.003]
[1738944590408,0.2036051,98195.0,98189.0,0.2066171]
[1738944590607,0.2036147,98191.0,98189.0,0.003]
[1738944590908,0.00115279,98197.0,98189.0,0.003]
[1738944591104,0.2036139,98191.0,98189.0,0.003]
[1738944591313,0.5644139,98191.0,98189.0,0.003]
[1738944591612,0.2036139,98191.0,98189.0,0.003]
[1738944591807,0.2046139,98191.0,98189.0,0.012]
[1738944592007,0.2046139,98191.0,98189.0,0.009]
[1738944592199,0.001,98191.0,98190.0,0.2036153]
[1738944592511,0.2446,98220.0,98189.0,0.009]
[1738944592512,0.2035594,98217.0,98209.0,0.2035754]
[1738944592896,0.17926499,98220.0,98204.0,0.2035861]
[1738944593100,0.3608,98218.0,98197.0,0.3608]
[1738944593309,0.38284019,98210.0,98197.0,0.3608]
[1738944593504,0.38284019,98210.0,98197.0,0.5643999]
[1738944593703,0.2035809,98207.0,98198.0,0.20375109]
[1738944593903,0.2035809,98207.0,98198.0,0.00015279]
[1738944594103,0.2035632,98216.0,98201.0,0.2035917]
[1738944594409,0.3608,98202.0,98198.0,0.00015279]
[1738944594607,0.2035959,98200.0,98198.0,0.00015279]
[1738944595404,0.3608,98199.0,98198.0,0.00015279]
[1738944596112,0.3608,98199.0,98198.0,0.00215279]
[1738944596304,0.3608,98199.0,98198.0,0.00715279]
[1738944596506,0.3608,98199.0,98198.0,0.00515279]
[1738944596706,0.3608,98199.0,98198.0,0.00715279]
[1738944597010,0.6745,98199.0,98165.0,0.19123959]
[1738944597210,0.2036492,98174.0,98165.0,0.19123959]
[1738944597409,0.2036492,98174.0,98165.0,0.18204026]
[1738944597609,0.2036336,98182.0,98167.0,0.2036623]
[1738944597818,0.2036366,98180.0,98167.0,0.2036623]
[1738944598117,0.36224,98190.0,98173.0,0.3608]
[1738944598315,0.00015279,98183.0,98180.0,0.2036347]
[1738944598513,0.00015279,98183.0,98173.0,0.5644493]
[1738944598707,0.00015279,98183.0,98173.0,0.3608]
[1738944598902,0.00015279,98183.0,98179.0,0.2036367]
[1738944599103,0.00015279,98183.0,98181.0,0.5644333]
[1738944599806,0.0716,98206.0,98201.0,0.2035924]
[1738944600005,0.00913929,98206.0,98201.0,0.2035924]
[1738944600211,0.2404,98222.0,98194.0,0.2036058]
[1738944600212,0.3608,98217.0,98194.0,0.2036058]
[1738944600412,0.2035877,98204.0,98191.0,0.3608]
[1738944600615,0.2035629,98216.0,98191.0,0.3608]
[1738944600815,0.3608,98217.0,98191.0,0.3608]
[1738944600816,0.2035759,98209.0,98192.0,0.268]
[1738944601020,0.2035789,98208.0,98199.0,0.2035946]
[1738944601311,0.2035789,98208.0,98200.0,0.2035937]
[1738944601502,0.2035932,98201.0,98194.0,0.00015279]
[1738944601715,0.2035932,98201.0,98197.0,0.2036001]
[1738944601907,0.3608,98217.0,98201.0,0.2035908]
[1738944602404,0.2036035,98196.0,98194.0,0.00015279]
[1738944603407,0.2036035,98196.0,98194.0,8.849e-05]
[1738944603617,0.3608,98197.0,98163.0,0.2696]
[1738944603814,0.2036563,98171.0,98164.0,0.30370027]
[1738944604111,0.38290269,98180.0,98164.0,0.30370027]
[1738944604309,0.3608,98179.0,98164.0,0.30370027]
[1738944604511,0.3608,98177.0,98164.0,0.30370027]
[1738944604709,0.3608,98180.0,98164.0,0.30370027]
[1738944604915,0.54006499,98180.0,98169.0,0.2036568]
[1738944605115,0.54006499,98180.0,98164.0,0.30370027]
[1738944605312,0.54006499,98180.0,98170.0,0.203655]
[1738944605507,0.18848487,98180.0,98164.0,0.30370027]
[1738944605815,0.00140001,98195.0,98175.0,0.2036464]
[1738944606117,0.17926499,98210.0,98175.0,0.2036464]
[1738944606118,0.60383066,98225.0,98194.0,0.3608]
[1738944606304,0.60523067,98225.0,98222.0,0.2035489]
[1738944606507,0.25388489,98225.0,98222.0,0.5643489]
[1738944606809,0.24303066,98225.0,98222.0,0.5643489]
[1738944607210,0.24303066,98225.0,98222.0,0.3608]
[1738944607818,0.24303066,98225.0,98222.0,0.6351]
[1738944608119,0.24303066,98225.0,98213.0,0.00015279]
[1738944608315,0.2035535,98220.0,98213.0,0.00015279]
[1738944608615,0.00352829,98223.0,98216.0,0.2035613]
[1738944608914,0.00352829,98223.0,98213.0,0.00015279]
[1738944609116,0.00152829,98223.0,98213.0,0.00015279]
[1738944609317,0.2035654,98215.0,98213.0,0.00015279]
[1738944609720,0.2036028,98196.0,98195.0,0.18299466]
[1738944609927,0.5644028,98196.0,98195.0,0.18299466]
[1738944610214,0.17926499,98205.0,98195.0,0.18299466]
[1738944610215,0.3608,98204.0,98195.0,0.18299466]
[1738944610619,0.07156,98218.0,98195.0,0.18299466]
[1738944610620,0.17926499,98210.0,98195.0,0.18299466]
[1738944610816,0.3608,98203.0,98195.0,0.18299466]
[1738944611024,0.2036019,98197.0,98195.0,0.18299466]
[1738944611618,0.2036122,98192.0,98190.0,0.00015279]
[1738944611818,0.3608,98200.0,98160.0,0.36225965]
[1738944611819,0.3608,98191.0,98160.0,0.18299466]
[1738944612127,0.17926499,98180.0,98165.0,0.203666]
[1738944612424,0.3608,98183.0,98160.0,0.18299466]
[1738944612720,0.07156,98195.0,98160.0,0.18299466]
[1738944612721,0.2036742,98162.0,98160.0,0.18299466]
[1738944612925,0.2036742,98162.0,98160.0,0.13823154]
[1738944613125,0.3608,98165.0,98160.0,0.13303154]
[1738944614031,0.00140001,98169.0,98160.0,0.13303154]
[1738944614220,0.25082499,98170.0,98160.0,0.13303154]
[1738944614816,0.3608,98164.0,98160.0,0.13303154]
[1738944615019,0.3608,98164.0,98160.0,0.13903154]
[1738944615721,0.2036731,98163.0,98160.0,0.007]
[1738944615923,0.2036731,98163.0,98160.0,0.001]
[1738944616125,0.2036731,98163.0,98160.0,0.004]
[1738944616328,0.2036731,98163.0,98160.0,0.006]
[1738944617135,0.00015279,98171.0,98160.0,0.006]
[1738944617337,0.00015279,98171.0,98169.0,0.2036588]
[1738944617849,0.00015279,98171.0,98160.0,0.006]
[1738944617850,0.2036665,98166.0,98160.0,0.006]
[1738944618035,0.3608,98168.0,98160.0,0.006]
[1738944618334,0.001,98163.0,98160.0,0.01]
[1738944618836,0.2036733,98162.0,98160.0,0.01]
[1738944619036,0.2036733,98162.0,98160.0,0.008]
[1738944619630,0.2036733,98162.0,98160.0,0.00399992]
[1738944620230,0.0509213,98157.0,98123.0,0.2676]
[1738944620442,0.17926499,98133.0,98123.0,0.2676]
[1738944620624,0.3608,98148.0,98135.0,0.2037293]
[1738944620827,0.3608,98148.0,98123.0,0.2676]
[1738944621033,0.3608,98148.0,98139.0,0.2037201]
[1738944621227,0.3608,98148.0,98139.0,0.2037208]
[1738944621735,0.3608,98148.0,98141.0,0.2037159]
[1738944621932,0.3608,98143.0,98134.0,0.00015279]
[1738944622236,0.3608,98143.0,98119.0,0.08091187]
[1738944622237,0.2037605,98120.0,98119.0,0.08091187]
[1738944622443,0.43236,98120.0,98093.0,0.3608]
[1738944622627,0.2037751,98113.0,98112.0,0.29070204]
[1738944623141,0.2037906,98106.0,98103.0,0.00015287]
[1738944623637,0.3608,98110.0,98103.0,0.00015287]
[1738944624034,0.2037924,98105.0,98103.0,0.00015287]
[1738944625436,0.37114845,98110.0,98073.0,0.65150204]
[1738944625437,0.3608,98108.0,98073.0,0.29070204]
[1738944625633,0.17926499,98090.0,98073.0,0.29070204]
[1738944625829,0.2038268,98089.0,98073.0,0.29070204]
[1738944626038,0.17926499,98090.0,98074.0,0.2038555]
[1738944626237,0.2038393,98083.0,98074.0,0.2038555]
[1738944626632,0.2038393,98083.0,98070.0,0.00928609]
[1738944626633,0.00015287,98088.0,98070.0,0.00928609]
[1738944626842,0.00015287,98088.0,98075.0,0.3608]
[1738944627339,0.3608,98083.0,98074.0,0.004]
[1738944627541,0.3608,98075.0,98069.0,0.00015287]
[1738944627741,0.2039223,98043.0,98041.0,0.00152931]
[1738944628144,0.17926499,98051.0,98041.0,0.00152931]
[1738944628343,0.2039218,98043.0,98041.0,0.00152931]
[1738944628844,0.3608,98042.0,98041.0,0.00152931]
[1738944629147,0.2039414,98033.0,98032.0,0.00010218]
[1738944629352,0.5647414,98033.0,98032.0,0.00010218]
[1738944629640,0.3608,98033.0,98032.0,0.00010218]
[1738944630750,0.07396001,98042.0,98033.0,0.2039399]
[1738944631044,0.01030901,98042.0,98032.0,0.00010218]
[1738944631236,0.00930901,98042.0,98032.0,0.00010218]
[1738944631434,0.001,98033.0,98012.0,0.3608]
[1738944631648,0.2040059,98002.0,97984.0,0.2040424]
[1738944631844,0.27735363,98010.0,97981.0,0.2892]
[1738944632141,0.72304,98018.0,97981.0,0.2892]
[1738944632142,0.3608,98015.0,98001.0,0.2040061]
[1738944632338,0.2039941,98008.0,97992.0,0.2040254]
[1738944632745,0.3608,98015.0,97990.0,0.3608]
[1738944632746,0.27735363,98010.0,97990.0,0.3608]
[1738944633046,0.3608,98005.0,97990.0,0.3608]
[1738944633246,0.2040079,98002.0,97981.0,0.2892]
[1738944633446,0.2040079,98002.0,97973.0,0.2040661]
[1738944633646,0.2040079,98002.0,97973.0,0.00953876]
[1738944633944,0.3608,98005.0,98000.0,0.102]
[1738944634143,0.001,98010.0,98009.0,0.2039913]
[1738944634548,0.001,98010.0,98009.0,0.5647913]
[1738944634742,0.00947825,98024.0,98013.0,0.203983]
[1738944635537,0.2039881,98011.0,98009.0,0.3608]
[1738944635740,0.63815363,98020.0,98002.0,0.3608]
[1738944635941,0.2040039,98003.0,98000.0,0.1]
[1738944636139,0.3608,98011.0,98000.0,0.1]
[1738944636140,0.002,98005.0,98000.0,0.1]
[1738944636347,0.3608,98001.0,98000.0,0.1]
[1738944637148,0.3608,98001.0,97975.0,0.8503622]
[1738944637149,0.2040553,97979.0,97975.0,0.3608]
[1738944637451,0.3608,97983.0,97975.0,0.3608]
[1738944637650,0.3608,97983.0,97976.0,0.2040585]
[1738944637847,0.3608,97983.0,97977.0,0.2040567]
[1738944638244,0.00015306,97987.0,97985.0,0.2040398]
[1738944638445,0.00015306,97987.0,97985.0,0.5648398]
[1738944638652,0.00015306,97987.0,97985.0,0.2040398]
[1738944638853,0.00015306,97987.0,97975.0,0.3608]
[1738944639147,0.2040482,97982.0,97975.0,0.3608]
[1738944639346,0.3608,97984.0,97975.0,0.3608]
[1738944639950,0.3608,97984.0,97979.0,0.2040536]
[1738944640146,0.00015306,97987.0,97975.0,0.3618]
[1738944640450,0.00015306,97987.0,97986.0,0.5648393]
[1738944641054,0.27735363,98040.0,98004.0,0.0510002]
[1738944641347,0.0716,98045.0,98020.0,0.3608]
[1738944641550,0.27735363,98040.0,98011.0,0.3608]
[1738944641738,0.3608,98038.0,98011.0,0.3608]
[1738944641943,0.3608,98038.0,98029.0,0.203948]
[1738944642157,0.01111115,98044.0,98042.0,0.203922]
[1738944642451,0.00153102,98044.0,98021.0,0.3608]
[1738944642749,0.00153102,98044.0,98029.0,0.3608]
[1738944643252,0.2039218,98043.0,98029.0,0.3608]
[1738944643439,0.01053102,98044.0,98042.0,0.2039213]
[1738944643945,0.00153102,98044.0,98042.0,0.2039213]
[1738944644138,0.00953102,98044.0,98038.0,0.2893]
[1738944644339,0.01653102,98044.0,98038.0,0.2893]
[1738944644554,0.01653102,98044.0,98042.0,0.2039212]
[1738944644947,0.00953102,98044.0,98042.0,0.2059212]
[1738944646443,0.00553102,98044.0,98042.0,0.2039212]
[1738944646744,0.00653102,98044.0,98042.0,0.2039212]
[1738944647054,0.00553102,98044.0,98042.0,0.2039212]
[1738944647246,0.00953102,98044.0,98042.0,0.2039212]
[1738944647753,0.00553102,98044.0,98042.0,0.2039212]
[1738944647950,0.00453102,98044.0,98042.0,0.2039212]
[1738944648158,0.00453102,98044.0,98042.0,0.2059212]
[1738944648459,0.00015306,98053.0,98044.0,0.2039179]
[1738944648646,0.00015306,98053.0,98048.0,0.3608]
[1738944648845,0.2039081,98049.0,98048.0,0.3608]
[1738944649050,0.00015306,98053.0,98048.0,0.3608]
[1738944649257,0.00015306,98053.0,98051.0,0.2039026]
[1738944650649,0.00415306,98053.0,98051.0,0.2039026]
[1738944651157,0.00935738,98077.0,98049.0,0.3608]
[1738944651354,0.2801,98099.0,98076.0,0.3608]
[1738944651660,0.2038554,98075.0,98065.0,0.3608]
[1738944651960,0.3608,98105.0,98074.0,0.3608]
[1738944652145,0.51197327,98111.0,98087.0,0.2038291]
[1738944652351,0.00963073,98101.0,98087.0,0.2038291]
[1738944652558,0.00015298,98091.0,98087.0,0.2038291]
[1738944653254,0.15117327,98111.0,98099.0,0.2037844]
[1738944653566,0.15117327,98111.0,98089.0,0.2038033]
[1738944653743,0.15117327,98111.0,98099.0,0.3608]
[1738944653950,0.15117327,98111.0,98107.0,0.3608]
[1738944654151,0.00144,98139.0,98131.0,0.2037168]
[1738944654355,0.2037133,98133.0,98120.0,0.2037396]
[1738944654657,0.00966194,98137.0,98123.0,0.0001529]
[1738944655260,0.00966194,98137.0,98126.0,0.7216]
[1738944655556,0.27336682,98140.0,98133.0,0.2037132]
[1738944655855,0.2036998,98140.0,98126.0,0.3608]
[1738944656452,0.0001529,98142.0,98126.0,0.3608]
[1738944656659,0.2037136,98133.0,98126.0,0.3608]
[1738944657361,0.2037136,98133.0,98131.0,0.002]
[1738944657948,0.2037237,98128.0,98126.0,0.002]
[1738944658653,0.2037459,98118.0,98101.0,0.3608]
[1738944659050,0.2037459,98118.0,98103.0,0.2037738]
[1738944659248,0.36220001,98120.0,98101.0,0.3608]
[1738944659447,0.3608,98120.0,98101.0,0.5645781]
[1738944659664,0.2037338,98124.0,98101.0,0.3608]
[1738944659958,0.0001529,98120.0,98117.0,0.3608]
[1738944660153,0.0001529,98120.0,98118.0,0.2037444]
[1738944660353,0.0001529,98120.0,98119.0,0.3608]
[1738944660656,0.203673,98153.0,98119.0,0.6608]
[1738944660858,0.00140001,98151.0,98131.0,0.3608]
[1738944661053,0.2036856,98147.0,98138.0,0.2037015]
[1738944661360,0.36232927,98154.0,98129.0,0.2037198]
[1738944661560,0.37175373,98154.0,98128.0,0.3608]
[1738944661761,0.37175373,98154.0,98137.0,0.3608]
[1738944661962,0.0001529,98151.0,98137.0,0.3608]
[1738944662162,0.0001529,98151.0,98150.0,0.203678]
[1738944662361,0.0001529,98151.0,98145.0,0.3608]
[1738944662865,0.3608,98146.0,98098.0,0.3608]
[1738944663054,0.5655403,98120.0,98098.0,0.3608]
[1738944663259,0.2047403,98120.0,98109.0,0.2037614]
[1738944663453,0.001,98120.0,98111.0,0.3608]
[1738944663650,0.001,98120.0,98098.0,0.3608]
[1738944663651,0.3608,98117.0,98098.0,0.3608]
[1738944664053,0.001,98120.0,98115.0,0.3608]
[1738944664260,0.0001529,98117.0,98115.0,0.5645494]
[1738944664849,0.0001529,98117.0,98115.0,0.3608]
[1738944665256,0.0001529,98117.0,98116.0,0.2037486]
[1738944665453,0.0001529,98117.0,98115.0,0.3608]
[1738944665761,0.2037486,98116.0,98115.0,0.3608]
[1738944666163,0.2037486,98116.0,98115.0,0.001]
[1738944666364,0.2037486,98116.0,98115.0,0.002]
[1738944666755,0.0001529,98117.0,98115.0,0.3618]
[1738944666957,0.0001529,98117.0,98116.0,0.2037486]
[1738944668157,0.0001529,98117.0,98115.0,0.3608]
[1738944668359,0.0001529,98117.0,98105.0,0.286]
[1738944668360,0.2037611,98110.0,98105.0,0.286]
[1738944668556,0.005,98116.0,98110.0,0.2037607]
[1738944668757,0.005,98116.0,98109.0,0.3608]
[1738944668959,0.005,98116.0,98102.0,0.2681]
[1738944669158,0.2037646,98109.0,98102.0,0.2681]
[1738944669358,0.2037646,98109.0,98103.0,0.3608]
[1738944669668,0.2037716,98105.0,98103.0,0.3608]
[1738944670065,0.0061529,98117.0,98092.0,0.5259]
[1738944670066,0.2037839,98099.0,98092.0,0.286]
[1738944670363,0.2037839,98099.0,98077.0,0.3608]
[1738944670554,0.20352687,98099.0,98077.0,0.3608]
[1738944670755,0.3608,98108.0,98093.0,0.3608]
[1738944670962,0.2037747,98104.0,98101.0,0.2037794]
[1738944671265,0.003,98105.0,98093.0,0.3608]
[1738944671464,0.003,98105.0,98103.0,0.3608]
[1738944671769,0.002,98109.0,98107.0,0.2037665]
[1738944672066,0.29694634,98116.0,98104.0,0.3608]
[1738944672364,0.2037839,98099.0,98093.0,0.3608]
[1738944672577,0.3608,98115.0,98100.0,0.2037808]
[1738944672764,0.2037662,98108.0,98102.0,0.203777]
[1738944672978,0.002,98109.0,98107.0,0.2037655]
[1738944673163,0.002,98109.0,98102.0,0.203776]
[1738944673369,0.2037652,98108.0,98106.0,4.468e-05]
[1738944674157,0.3608,98107.0,98106.0,4.468e-05]
[1738944674665,0.6213,98107.0,98106.0,4.468e-05]
[1738944675164,0.2605,98107.0,98106.0,0.56461398]
[1738944675368,0.001,98108.0,98106.0,0.56461398]
[1738944675560,0.001,98107.0,98106.0,0.56461398]
[1738944675765,0.001,98107.0,98106.0,4.468e-05]
[1738944676771,0.003,98107.0,98106.0,4.468e-05]
[1738944677374,0.001,98107.0,98106.0,4.468e-05]
[1738944677961,0.2039003,98117.0,98110.0,0.203759]
[1738944678171,0.0001529,98117.0,98106.0,4.468e-05]
[1738944678370,0.2037614,98110.0,98106.0,4.468e-05]
[1738944678579,0.2037645,98109.0,98106.0,0.00504468]
[1738944678873,0.001,98107.0,98106.0,0.00604468]
[1738944679475,0.2037838,98099.0,98098.0,0.0001529]
[1738944679676,0.2037984,98092.0,98091.0,0.00152897]
[1738944679978,0.5645984,98092.0,98091.0,0.00152897]
[1738944680170,0.5645984,98092.0,98071.0,0.20384]
[1738944680171,0.2038164,98084.0,98071.0,0.20384]
[1738944680363,0.2038204,98082.0,98071.0,0.20384]
[1738944680769,0.2038204,98082.0,98069.0,0.3608]
[1738944680975,0.0001529,98086.0,98081.0,0.2038206]
[1738944681173,0.0001529,98086.0,98077.0,0.3608]
[1738944681874,0.0001529,98086.0,98081.0,0.2038199]
[1738944682177,0.0001529,98086.0,98077.0,0.3608]
[1738944682375,0.01296571,98086.0,98077.0,0.3608]
[1738944682882,0.0031529,98086.0,98085.0,0.5646129]
[1738944683072,0.0001529,98086.0,98085.0,0.5646129]
[1738944683273,0.2644,98119.0,98085.0,0.6608]
[1738944683476,0.3608,98129.0,98115.0,0.2037502]
[1738944683673,0.3608,98129.0,98113.0,0.3608]
[1738944683972,0.3608,98129.0,98101.0,0.3608]
[1738944684180,0.19087717,98126.0,98117.0,0.3608]
[1738944684369,0.2037436,98119.0,98117.0,0.3608]
[1738944684767,0.2037481,98117.0,98112.0,0.0001529]
[1738944684971,0.2037547,98114.0,98112.0,0.0001529]
[1738944685480,0.5645383,98121.0,98112.0,0.0001529]
[1738944685681,0.3608,98121.0,98112.0,0.0001529]
[1738944685870,0.2037535,98114.0,98112.0,0.0001529]